bitfinex/quotes_ETHUSD_20250411
["timestamp","ask_amount","ask_price","bid_price","bid_amount"]
[1744392181053,12.44725,1568.1,1567.8,6.37836]
[1744392181239,12.44725,1568.1,1567.8,12.75672]
[1744392181441,0.816,1568.2,1568.0,6.37755]
[1744392181676,13.14912,1568.4,1568.1,6.37714]
[1744392181677,7.21592,1568.4,1568.1,6.37714]
[1744392182040,6.37685,1568.2,1567.9,7.20426]
[1744392182241,6.37685,1568.2,1567.9,13.58209]
[1744392182742,12.75375,1568.2,1567.9,7.20426]
[1744392182978,6.37717,1568.1,1567.8,14.032292]
[1744392183283,19.60028,1568.1,1567.8,6.37831]
[1744392183494,19.60028,1568.1,1567.8,6.44208693]
[1744392183784,13.22297,1568.1,1567.8,6.44208693]
[1744392184085,6.8458,1568.1,1567.8,12.82032693]
[1744392184383,6.8458,1568.1,1567.8,6.44201693]
[1744392184689,6.8458,1568.1,1567.7,0.06377504]
[1744392184690,8.168066,1568.1,1567.7,0.06377504]
[1744392184902,6.37921,1567.6,1567.3,6.38029]
[1744392185076,6.07,1567.6,1567.4,6.37979]
[1744392185282,13.27425,1567.7,1567.3,6.38037]
[1744392185590,6.37986,1567.5,1567.1,12.7621]
[1744392185773,6.38014,1567.4,1567.0,12.76312]
[1744392185971,6.38014,1567.4,1567.1,6.38118]
[1744392186181,7.15022,1567.3,1566.9,7.14105]
[1744392186377,13.53088,1567.3,1566.9,12.7639]
[1744392186565,7.16718,1567.0,1566.6,6.38314]
[1744392186910,6.38204,1566.9,1566.3,14.48155853]
[1744392187205,6.38207,1566.9,1566.5,6.38359]
[1744392187375,0.7715,1566.7,1566.4,6.384]
[1744392187710,7.15459,1566.7,1566.3,13.99560674]
[1744392187894,6.38345,1566.6,1566.3,6.80040674]
[1744392188071,6.38345,1566.6,1566.3,13.18483674]
[1744392188268,12.76695,1566.6,1566.3,6.80040674]
[1744392188528,6.38345,1566.6,1566.3,6.80040674]
[1744392188873,6.3839,1566.5,1566.3,6.80040674]
[1744392189069,6.3839,1566.5,1565.9,16.07355927]
[1744392189070,0.7541,1566.4,1565.9,6.723]
[1744392189410,0.7541,1566.4,1566.2,6.38483]
[1744392189782,0.20335829,1566.3,1566.2,6.38483]
[1744392190119,0.20335829,1566.3,1566.1,12.77007]
[1744392190412,6.58802829,1566.3,1565.9,6.3858]
[1744392190569,6.58802829,1566.3,1565.9,14.125683]
[1744392190765,0.20335829,1566.3,1566.1,6.38528]
[1744392191022,0.20335829,1566.3,1566.0,6.3856]
[1744392191169,0.20335829,1566.3,1566.0,0.06384823]
[1744392191376,0.20335829,1566.3,1566.1,6.38509]
[1744392191986,0.20335829,1566.3,1566.0,6.38562]
[1744392192177,0.20335829,1566.3,1566.0,6.44946822]
[1744392192397,0.20335829,1566.3,1566.1,6.38509]
[1744392193923,0.20335829,1566.3,1566.0,7.66918082]
[1744392194434,0.20335829,1566.3,1566.0,7.66908082]
[1744392194607,0.20335829,1566.3,1566.0,6.44937817]
[1744392194937,0.20335829,1566.3,1566.1,6.38515]
[1744392195233,0.20335829,1566.3,1566.0,6.38553]
[1744392195436,7.15469,1566.1,1565.7,6.38682]
[1744392195804,6.57771045,1566.0,1565.7,6.38682]
[1744392195999,0.19201045,1566.0,1565.7,6.38682]
[1744392196192,6.57774045,1566.0,1565.6,6.38725]
[1744392196393,7.6352535,1566.0,1565.5,0.06386354]
[1744392196598,14.0210035,1566.0,1565.6,6.38717]
[1744392197342,6.26201045,1566.0,1565.8,6.38638]
[1744392197801,6.26201045,1566.0,1565.8,6.38631]
[1744392198004,6.26201045,1566.0,1565.9,6.3861]
[1744392198194,6.26201045,1566.0,1565.8,6.38631]
[1744392198517,6.26201045,1566.0,1565.7,6.3869]
[1744392198720,6.26201045,1566.0,1565.7,0.06386073]
[1744392199028,6.26201045,1566.0,1565.7,6.45070073]
[1744392199218,6.26201045,1566.0,1565.7,6.38684]
[1744392199415,6.26201045,1566.0,1565.7,12.77362]
[1744392199636,6.26201045,1566.0,1565.7,6.38676]
[1744392199851,6.38619,1565.9,1565.5,6.38765]
[1744392200050,6.38619,1565.9,1565.5,6.38755]
[1744392200253,6.38692,1565.7,1565.2,6.38883]
[1744392200426,1.442292,1565.6,1565.2,6.38883]
[1744392200751,0.99293831,1565.6,1565.3,6.45235864]
[1744392200936,0.99293831,1565.6,1565.4,6.38798]
[1744392201750,0.18933831,1565.6,1565.5,6.38773]
[1744392203149,0.18933831,1565.6,1565.5,6.45160048]
[1744392203514,6.8293,1566.0,1565.7,6.38661]
[1744392203825,6.8293,1566.0,1565.8,6.38626]
[1744392204150,6.8293,1566.0,1565.9,6.3861]
[1744392204351,6.8374,1566.2,1565.9,12.7722]
[1744392204524,6.8374,1566.2,1566.0,6.38564]
[1744392204724,6.8374,1566.2,1566.0,12.77121]
[1744392204924,0.1887866,1566.1,1565.9,6.44994324]
[1744392205255,0.18805144,1566.0,1565.9,7.66973532]
[1744392205461,0.18805144,1566.0,1565.7,7.025401]
[1744392205638,6.38583,1566.0,1565.7,0.638661]
[1744392205955,6.38583,1566.0,1565.7,6.38684]
[1744392205956,0.18827375,1565.9,1565.7,6.38684]
[1744392206163,0.18827375,1565.9,1565.6,6.3872]
[1744392206359,18.84335,1565.8,1565.4,6.38812]
[1744392206565,0.8239,1565.5,1565.3,6.38844]
[1744392206925,6.25623594,1565.7,1565.4,6.38814]
[1744392207244,7.16369,1565.6,1565.2,6.3888]
[1744392207447,6.8462,1565.6,1565.3,6.38836]
[1744392207619,6.8462,1565.6,1565.3,12.77679]
[1744392207819,6.8462,1565.6,1565.4,6.38808]
[1744392208123,6.8462,1565.6,1565.5,6.38773]
[1744392208455,6.07,1565.6,1565.5,7.665311]
[1744392209051,6.07,1565.6,1565.5,1.277581]
[1744392209357,6.07,1565.6,1565.3,6.38849]
[1744392209715,0.7762,1565.5,1565.2,6.38889]
[1744392209912,0.7762,1565.5,1565.2,12.7777]
[1744392210452,0.7762,1565.5,1565.1,7.22455]
[1744392210656,7.84866,1565.5,1565.1,6.43925]
[1744392210853,7.84866,1565.5,1565.1,6.43922]
[1744392211078,7.84866,1565.5,1565.1,0.05]
[1744392211079,6.38857,1565.3,1565.1,0.05]
[1744392211356,7.14075,1565.2,1565.1,0.05]
[1744392211559,0.7518,1565.2,1565.1,0.05]
[1744392211732,7.14075,1565.2,1565.1,0.05]
[1744392212546,13.21075,1565.2,1565.1,0.05]
[1744392212818,8.48335163,1565.2,1565.1,0.05]
[1744392213065,6.07,1565.2,1565.1,6.43936]
[1744392213555,6.07,1565.4,1565.3,6.38855]
[1744392213923,6.07,1565.4,1565.2,6.38876]
[1744392214137,6.07,1565.4,1565.1,6.43926]
[1744392214348,6.07,1565.4,1565.1,6.43924]
[1744392214637,6.07,1565.4,1565.2,6.38884]
[1744392215256,6.07,1565.4,1565.2,12.77768]
[1744392215464,12.769,1565.5,1565.3,6.38855]
[1744392216113,6.07,1565.5,1565.4,6.38814]
[1744392219251,6.8228,1565.8,1565.6,6.38722]
[1744392219899,0.18221271,1565.7,1565.6,6.45119274]
[1744392220056,0.18221271,1565.7,1565.6,7.17651061]
[1744392220252,6.07,1565.9,1565.7,6.38664]
[1744392220493,0.8287,1566.0,1565.7,6.45070106]
[1744392220791,6.38624,1565.9,1565.6,6.38731]
[1744392220996,7.2144,1566.0,1565.7,6.38679]
[1744392221677,7.2146,1566.0,1565.7,6.38684]
[1744392222085,7.2146,1566.0,1565.7,6.38678]
[1744392222258,0.8287,1566.0,1565.8,6.38645]
[1744392222468,0.8287,1566.0,1565.8,12.77276]
[1744392222992,0.8287,1566.0,1565.8,6.38637]
[1744392223491,0.8287,1566.0,1565.7,12.7736]
[1744392223798,7.21439,1566.0,1565.7,1.35963]
[1744392223996,13.60044,1566.0,1565.6,12.77438]
[1744392224200,13.60044,1566.0,1565.6,12.77439]
[1744392224358,7.21439,1566.0,1565.7,6.3869]
[1744392224663,6.07,1566.1,1565.9,6.38575]
[1744392225194,6.07,1566.1,1565.9,6.38606]
[1744392227202,6.38571,1566.0,1565.5,0.7592]
[1744392227382,12.77157,1566.0,1565.6,6.38701]
[1744392227696,0.7531,1565.9,1565.6,6.38701]
[1744392227996,0.7531,1565.9,1565.3,7.4657]
[1744392227997,6.38662,1565.8,1565.3,7.4657]
[1744392228301,19.59555,1565.9,1565.5,12.77496]
[1744392228474,19.59557,1565.9,1565.5,12.77496]
[1744392228674,13.20928,1565.9,1565.6,6.38727]
[1744392228878,6.8231,1565.9,1565.6,6.38727]
[1744392229076,13.20923,1565.9,1565.6,6.38727]
[1744392229368,21.555072,1565.9,1565.5,6.38767]
[1744392229693,6.38652,1565.8,1565.5,12.77534]
[1744392230073,6.38652,1565.8,1565.5,6.38761]
[1744392230603,21.555212,1565.9,1565.5,12.77523]
[1744392230759,21.555022,1565.9,1565.5,12.77523]
[1744392230955,21.555172,1565.9,1565.5,12.77523]
[1744392231761,6.38655,1565.8,1565.5,12.77523]
[1744392232206,15.168772,1565.9,1565.5,12.77523]
[1744392232699,21.555262,1565.9,1565.5,6.38761]
[1744392233000,21.555262,1565.9,1565.5,12.77523]
[1744392233183,21.555262,1565.9,1565.5,6.38761]
[1744392233384,6.38704,1565.7,1565.4,6.38805]
[1744392233588,7.19123,1565.6,1565.3,6.38843]
[1744392234199,13.5787,1565.6,1565.3,6.38843]
[1744392234507,0.18086446,1565.5,1565.3,6.38843]
[1744392234679,6.56864446,1565.5,1565.2,6.38887]
[1744392234882,0.18086446,1565.5,1565.3,6.38837]
[1744392235868,6.56868446,1565.5,1565.2,6.38884]
[1744392236069,6.56868446,1565.5,1565.2,12.77769]
[1744392236472,0.18086446,1565.5,1565.3,12.77692]
[1744392237214,0.18086446,1565.5,1565.3,6.38846]
[1744392237910,0.18086446,1565.5,1565.4,7.25771968]
[1744392238206,0.18086446,1565.5,1565.4,7.67905017]
[1744392238414,6.07,1565.7,1565.6,6.38732]
[1744392238592,7.18352,1566.0,1565.6,6.3872]
[1744392238803,7.18352,1566.0,1565.5,12.5257]
[1744392238804,0.18280448,1565.7,1565.5,12.5257]
[1744392239121,12.77293,1565.9,1565.6,6.3873]
[1744392239423,1.277293,1565.8,1565.6,6.3873]
[1744392240027,1.277293,1565.8,1565.7,6.38691]
[1744392240226,13.56925,1566.0,1565.7,6.38679]
[1744392240391,6.38612,1565.9,1565.6,6.38721]
[1744392240786,6.38612,1565.9,1565.6,12.77442]
[1744392240983,6.38612,1565.9,1565.1,3.9151129]
[1744392240984,6.38811,1565.5,1565.2,7.20075]
[1744392241309,6.38817,1565.4,1565.1,12.82856]
[1744392241714,18.84645,1565.4,1565.1,6.43928]
[1744392241917,6.3886,1565.3,1565.1,0.05]
[1744392242104,7.14425,1565.2,1565.1,0.05]
[1744392242300,14.567535,1565.2,1565.1,0.05]
[1744392242530,17.567535,1565.2,1565.1,0.05]
[1744392245347,8.178585,1565.2,1565.1,0.05]
[1744392245505,6.8253,1565.2,1565.1,0.05]
[1744392245701,13.21425,1565.2,1565.1,0.05]
[1744392246552,6.8253,1565.2,1565.1,0.05]
[1744392246748,6.07,1565.2,1565.1,0.05]
[1744392247251,12.45895,1565.2,1565.1,0.05]
[1744392247433,15.008005,1565.2,1565.1,0.05]
[1744392248262,8.619055,1565.2,1565.1,0.05]
[1744392248565,12.45895,1565.2,1565.1,0.05]
[1744392250039,12.63418962,1565.2,1565.1,0.05]
[1744392250462,23.60428962,1565.2,1565.1,0.05]
[1744392251168,0.7796,1564.6,1564.2,6.39295]
[1744392251472,13.24107,1564.6,1564.2,6.39291]
[1744392251768,0.16441592,1564.5,1564.3,6.4564141]
[1744392252070,0.16441592,1564.5,1564.4,6.39222]
[1744392252274,19.8853,1564.8,1564.5,6.39181]
[1744392252472,19.8853,1564.8,1564.5,6.39169]
[1744392252689,26.27609,1564.8,1564.5,6.39169]
[1744392252992,26.27609,1564.8,1564.4,13.548]
[1744392253192,9.018629,1564.7,1564.4,13.548]
[1744392253487,2.627609,1564.7,1564.5,6.39179]
[1744392253692,19.88529,1564.8,1564.5,12.78347]
[1744392253853,6.07,1564.8,1564.6,6.39126]
[1744392254052,12.4602,1564.9,1564.6,6.39126]
[1744392254253,12.4602,1564.9,1564.6,12.78255]
[1744392254490,6.07,1565.0,1564.8,6.39058]
[1744392254691,6.07,1565.0,1564.8,6.39047]
[1744392254857,6.07,1565.0,1564.8,6.39044]
[1744392255191,12.45953,1565.1,1564.8,6.39059]
[1744392255367,12.45953,1565.1,1564.8,12.78103]
[1744392255698,6.07,1565.1,1564.9,6.39015]
[1744392256080,6.07,1565.1,1564.8,14.14770269]
[1744392256425,12.4596,1565.1,1564.8,6.39046]
[1744392256556,12.45947,1565.1,1564.8,6.39045]
[1744392256761,12.45947,1565.1,1564.8,12.78092]
[1744392256991,18.84902,1565.1,1564.8,6.39045]
[1744392257164,6.07,1565.1,1564.9,6.39016]
[1744392257367,6.07,1565.1,1564.9,12.78032]
[1744392257799,6.07,1565.1,1565.0,6.38977]
[1744392257981,13.2082,1565.4,1565.1,6.38916]
[1744392258183,16.68792195,1565.5,1565.2,6.38893]
[1744392258364,6.07,1565.5,1565.1,6.38931]
[1744392258564,6.38837,1565.4,1565.1,12.77854]
[1744392258786,6.38837,1565.4,1565.1,6.38923]
[1744392258985,12.77665,1565.4,1565.1,6.38923]
[1744392259496,6.38828,1565.4,1565.1,12.77846]
[1744392259861,12.45785,1565.5,1565.0,7.18845]
[1744392259862,6.38868,1565.3,1565.0,7.18845]
[1744392260274,6.38868,1565.3,1565.0,13.5781]
[1744392261106,6.38868,1565.3,1565.0,7.18845]
[1744392262112,12.77655,1565.4,1565.0,7.18844]
[1744392262288,18.84569,1565.5,1565.1,6.38918]
[1744392262493,18.84569,1565.5,1565.2,6.38884]
[1744392262677,6.07,1565.5,1565.3,6.38855]
[1744392262993,12.45773,1565.5,1565.2,6.38885]
[1744392263370,18.84561,1565.5,1565.2,6.38881]
[1744392263574,6.38817,1565.4,1565.1,12.77848]
[1744392264689,0.17736708,1565.3,1565.1,12.77848]
[1744392265277,0.17736708,1565.3,1565.1,6.38923]
[1744392265615,6.56591708,1565.3,1565.0,13.57812]
[1744392265915,0.17736708,1565.3,1565.0,13.57812]
[1744392266314,12.95469708,1565.3,1565.0,0.7988]
[1744392266512,12.95469708,1565.3,1565.0,7.18855]
[1744392266513,7.86138679,1565.3,1565.0,7.18855]
[1744392267013,6.38959,1565.1,1564.8,7.1508]
[1744392267222,6.38952,1565.1,1564.8,13.5413]
[1744392267402,0.17555837,1565.0,1564.8,7.1508]
[1744392267804,0.17555837,1565.0,1564.8,6.3905]
[1744392268619,6.3903,1564.9,1564.6,13.54162]
[1744392268816,2.25321921,1565.0,1564.6,6.39122]
[1744392269118,6.39031,1564.9,1564.6,6.39122]
[1744392269318,6.56184117,1564.9,1564.6,12.78251]
[1744392269617,6.56184117,1564.9,1564.6,12.78252]
[1744392270687,0.17153117,1564.9,1564.7,6.39098]
[1744392271014,0.17153117,1564.9,1564.5,0.06390714]
[1744392271015,0.17153117,1564.9,1564.5,6.45563714]
[1744392271314,6.39112,1564.7,1564.4,7.22128]
[1744392271696,0.16647707,1564.6,1564.4,13.61338]
[1744392272015,6.39143,1564.6,1564.3,19.42904]
[1744392272214,7.04718971,1564.6,1564.3,19.429]
[1744392272514,0.16560113,1564.5,1564.3,12.785]
[1744392272690,0.16560113,1564.5,1564.4,6.39222]
[1744392272891,7.17902,1564.7,1564.4,12.84835373]
[1744392273079,0.16492192,1564.5,1564.4,12.78444]
[1744392273273,7.17902,1564.7,1564.4,12.78444]
[1744392273501,0.16565878,1564.6,1564.4,6.39222]
[1744392273780,6.39149,1564.6,1564.3,12.78502]
[1744392274181,0.16492192,1564.5,1564.3,12.78502]
[1744392274618,0.16492192,1564.5,1564.4,6.39222]
[1744392274985,14.605988,1564.7,1564.4,6.39222]
[1744392275183,0.16492192,1564.5,1564.4,6.39222]
[1744392275386,20.997388,1564.7,1564.3,12.78484]
[1744392275591,0.16492192,1564.5,1564.3,6.39224]
[1744392275922,0.16418496,1564.4,1564.3,6.39224]
[1744392276122,6.39152,1564.6,1564.3,12.78475]
[1744392276446,0.16418496,1564.4,1564.3,6.39224]
[1744392276590,8.4912708,1564.6,1564.3,12.78477]
[1744392277122,0.16450464,1564.5,1564.4,6.39222]
[1744392277485,20.997148,1564.7,1564.4,12.78444]
[1744392277486,6.8579,1564.7,1564.4,12.78444]
[1744392277694,6.8579,1564.7,1564.4,6.39222]
[1744392277695,0.16565878,1564.6,1564.4,6.39222]
[1744392277894,21.629422,1564.7,1564.4,6.39222]
[1744392278093,0.16579786,1564.6,1564.4,6.39222]
[1744392278335,15.238282,1564.7,1564.4,6.39222]
[1744392278518,0.165061,1564.5,1564.4,6.39222]
[1744392278689,21.629482,1564.7,1564.4,6.39222]
[1744392278894,0.16593693,1564.6,1564.4,6.39222]
[1744392279191,15.238282,1564.7,1564.4,6.39222]
[1744392279532,7.9152782,1564.6,1564.3,12.7851]
[1744392279732,6.55724786,1564.6,1564.3,12.7851]
[1744392280042,0.16579786,1564.6,1564.5,6.39181]
[1744392280337,6.07,1564.7,1564.5,6.39181]
[1744392280539,0.16427973,1564.6,1564.4,6.89204]
[1744392280691,6.39152,1564.6,1564.4,0.5]
[1744392280896,0.16358283,1564.5,1564.3,12.78506]
[1744392281132,0.16358283,1564.5,1564.4,6.39222]
[1744392281333,13.2678,1564.7,1564.4,12.78444]
[1744392281508,6.07,1564.7,1564.5,6.39179]
[1744392281705,6.07,1564.7,1564.5,12.78358]
[1744392281906,6.07,1564.7,1564.6,6.3914]
[1744392282239,13.26027,1565.2,1564.8,0.7742]
[1744392282402,13.26027,1565.2,1564.9,6.38996]
[1744392282595,13.26027,1565.2,1564.9,12.78003]
[1744392283035,6.645,1565.4,1565.1,6.38933]
[1744392283036,19.8926,1565.4,1565.1,6.38933]
[1744392283240,6.3887,1565.3,1565.0,6.38971]
[1744392283648,6.645,1565.4,1565.1,0.88738765]
[1744392283969,4.22980195,1565.5,1565.3,6.38855]
[1744392284243,4.22980195,1565.5,1565.3,6.38841]
[1744392284839,4.22980195,1565.5,1565.4,6.38814]
[1744392286230,4.22980195,1565.5,1565.3,12.77678]
[1744392286608,4.22980195,1565.5,1565.4,6.38814]
[1744392287345,4.22980195,1565.5,1565.4,7.16184]
[1744392287527,4.22980195,1565.5,1565.4,8.52324855]
[1744392288340,69.7145,1566.0,1565.7,12.77368]
[1744392288642,13.5328,1566.0,1565.7,12.77368]
[1744392288850,19.9185,1566.0,1565.7,6.3868]
[1744392289013,22.548908,1566.0,1565.7,6.3868]
[1744392289208,22.548908,1566.0,1565.7,12.77357]
[1744392289542,22.548908,1566.0,1565.7,6.38677]
[1744392290562,6.38624,1565.9,1565.5,6.38756]
[1744392290762,6.38624,1565.9,1565.5,12.77518]
[1744392290763,6.38656,1565.8,1565.5,12.77518]
[1744392291766,6.38618,1565.9,1565.5,12.77518]
[1744392291967,15.6660078,1565.9,1565.5,12.77518]
[1744392292264,9.2796978,1565.9,1565.5,12.77518]
[1744392293061,2.8935178,1565.9,1565.6,6.38727]
[1744392293246,19.9186,1566.0,1565.6,12.83832629]
[1744392293573,26.30466,1566.0,1565.6,12.77446]
[1744392293760,19.9186,1566.0,1565.7,6.38686]
[1744392294070,22.548998,1566.0,1565.7,6.38686]
[1744392294770,0.18237817,1565.9,1565.7,6.38686]
[1744392295063,0.18237817,1565.9,1565.7,7.1963]
[1744392295265,0.18237817,1565.9,1565.7,13.58309]
[1744392295569,0.18237817,1565.9,1565.8,6.45036824]
[1744392295758,19.63741,1566.2,1565.8,12.83671824]
[1744392296066,0.18237817,1565.9,1565.8,6.45020824]
[1744392296232,6.3857,1566.0,1565.7,7.1962]
[1744392296428,0.18237817,1565.9,1565.7,12.7736]
[1744392296737,6.56859817,1565.9,1565.6,6.38718]
[1744392297042,6.25237817,1565.9,1565.5,7.19892]
[1744392297372,6.38693,1565.7,1565.4,12.77607]
[1744392297669,6.38693,1565.7,1565.4,12.77606]
[1744392297886,0.18468406,1565.6,1565.4,12.77606]
[1744392298285,0.18468406,1565.6,1565.5,6.38773]
[1744392298687,0.62523782,1565.8,1565.6,6.38729]
[1744392299289,7.01178782,1565.8,1565.5,6.38773]
[1744392299584,13.39868782,1565.8,1565.5,6.38773]
[1744392300177,12.45622,1565.9,1565.4,6.45201134]
[1744392300354,18.84246,1565.9,1565.6,6.38699]
[1744392300687,18.84268,1565.9,1565.6,6.38732]
[1744392301189,18.84245,1565.9,1565.6,6.3872]
[1744392301376,6.07,1565.9,1565.6,7.1564]
[1744392301576,6.07,1565.9,1565.7,7.10245]
[1744392301889,12.45619,1565.9,1565.6,0.7692]
[1744392302061,6.38651,1565.8,1565.5,12.77514]
[1744392302576,6.38651,1565.8,1565.3,6.38854]
[1744392302577,6.38747,1565.6,1565.3,6.38854]
[1744392302783,6.38747,1565.6,1565.3,12.77708]
[1744392303304,6.38695,1565.7,1565.4,6.38813]
[1744392303457,12.77401,1565.7,1565.4,6.38813]
[1744392303802,8.0998143,1566.2,1565.4,6.38813]
[1744392303803,0.8287,1566.4,1565.9,6.38597]
[1744392304094,0.8287,1566.4,1566.0,0.0638532]
[1744392304297,13.59725,1566.4,1566.0,6.3856]
[1744392304496,6.38461,1566.3,1566.0,6.3856]
[1744392304669,6.38461,1566.3,1566.0,12.77117]
[1744392304869,6.385,1566.2,1565.9,6.38607]
[1744392305188,6.385,1566.2,1565.9,7.744336]
[1744392305554,6.385,1566.2,1565.9,14.130316]
[1744392305753,12.76923,1566.3,1566.0,6.38566]
[1744392305953,6.3853,1566.1,1565.8,13.58373]
[1744392306190,6.38489,1566.2,1565.8,7.19735]
[1744392306361,6.38489,1566.2,1565.9,6.3861]
[1744392306549,6.38489,1566.2,1565.9,12.77206]
[1744392306753,6.38449,1566.3,1566.0,6.44942639]
[1744392306994,6.38531,1566.1,1565.8,7.917125]
[1744392307291,12.45493,1566.2,1565.9,6.38593]
[1744392307498,18.83997,1566.2,1565.9,6.38593]
[1744392307863,6.07,1566.4,1566.3,6.38447]
[1744392308064,0.7811,1566.6,1566.4,6.38391]
[1744392308297,16.68265195,1566.7,1566.4,6.38391]
[1744392308510,23.06573195,1566.7,1566.3,13.5362]
[1744392308665,12.76678,1566.6,1566.3,7.15175]
[1744392309017,6.38332,1566.6,1566.3,7.21546695]
[1744392309195,6.38332,1566.6,1566.3,13.59979695]
[1744392309393,6.38332,1566.6,1566.3,13.53596]
[1744392309773,0.15018975,1566.5,1566.3,13.53596]
[1744392309990,0.15018975,1566.5,1566.3,7.15163]
[1744392311105,7.82567373,1566.5,1566.2,6.38483]
[1744392311270,8.61357373,1566.5,1566.2,6.38483]
[1744392311469,14.99749373,1566.5,1566.1,13.5947]
[1744392311680,6.38408,1566.4,1566.1,6.38512]
[1744392311881,8.61357373,1566.5,1566.0,6.38562]
[1744392311882,2.22978373,1566.5,1566.0,6.38562]
[1744392312084,6.385,1566.2,1565.9,20.70341663]
[1744392312407,6.07,1566.4,1566.2,6.38488]
[1744392313304,6.07,1566.4,1566.2,6.38473]
[1744392313808,6.07,1566.4,1566.2,12.76948]
[1744392313969,6.07,1566.4,1566.2,6.38473]
[1744392315003,12.45406,1566.4,1565.9,0.8244]
[1744392315205,7.16687,1566.2,1565.9,0.06385383]
[1744392315404,7.16687,1566.2,1565.9,6.38596]
[1744392315606,0.7819,1566.2,1566.0,6.38558]
[1744392315783,0.7819,1566.2,1566.0,6.38557]
[1744392315984,7.629936,1566.3,1566.0,12.77114]
[1744392316184,0.7629936,1566.2,1566.0,6.38557]
[1744392316397,7.1479036,1566.2,1565.9,12.772]
[1744392317018,0.7629936,1566.2,1566.0,6.38568]
[1744392318001,0.7629936,1566.2,1565.9,12.83589339]
[1744392318714,7.1480336,1566.2,1565.9,6.44987339]
[1744392318887,6.8329936,1566.2,1565.8,6.37678193]
[1744392319083,6.38582,1566.0,1565.7,7.15324]
[1744392319607,0.71480336,1566.1,1565.9,6.38604]
[1744392319816,0.71480336,1566.1,1565.9,6.38598]
[1744392320108,6.9003,1566.2,1565.8,6.38651]
[1744392320307,6.8299,1566.4,1566.0,0.7586]
[1744392320517,6.07,1566.4,1566.3,6.38447]
[1744392320819,13.21324,1566.6,1566.3,6.38447]
[1744392321019,8.151224,1566.6,1566.3,6.38447]
[1744392321177,8.151224,1566.6,1566.2,12.8334208]
[1744392321561,6.8299,1566.6,1566.4,6.38406]
[1744392321721,6.07,1566.6,1566.4,13.58828]
[1744392322017,6.07,1566.6,1566.4,13.58813]
[1744392322676,6.07,1566.6,1566.4,13.58815]
[1744392323015,6.07,1566.6,1566.4,7.20421]
[1744392323316,6.3837,1566.5,1566.2,13.55166]
[1744392323479,6.3837,1566.5,1566.2,7.1669]
[1744392323679,6.3837,1566.5,1566.2,13.55164]
[1744392323916,12.76754,1566.5,1566.2,7.1669]
[1744392324089,14.50742,1566.6,1566.2,13.55163]
[1744392324285,7.834512,1566.5,1566.2,7.1669]
[1744392324690,1.450742,1566.5,1566.3,6.3844]
[1744392324888,0.15129799,1566.4,1566.3,6.3844]
[1744392325301,12.45334,1566.6,1566.3,12.76875]
[1744392325485,0.15129799,1566.4,1566.3,12.76875]
[1744392325685,12.45326,1566.6,1566.3,6.38435]
[1744392326313,6.53559255,1566.5,1566.2,7.16697]
[1744392326525,6.38412,1566.4,1566.1,19.40441]
[1744392326688,7.16682,1566.4,1566.1,6.38514]
[1744392326883,0.15052306,1566.3,1566.1,6.44898578]
[1744392327517,0.15052306,1566.3,1566.1,6.38527]
[1744392327835,6.53499306,1566.3,1566.0,13.57274]
[1744392328210,0.15052306,1566.3,1566.1,6.4490272]
[1744392328541,0.15052306,1566.3,1566.2,6.38488]
[1744392328738,12.76753,1566.5,1566.2,6.38488]
[1744392328938,0.15085735,1566.4,1566.3,6.38415]
[1744392329144,6.38418,1566.4,1566.0,7.18722]
[1744392329347,6.53464247,1566.3,1566.0,7.18716]
[1744392329638,6.53464247,1566.3,1566.0,13.63656732]
[1744392329849,6.53464247,1566.3,1566.0,13.57272]
[1744392330412,0.15012247,1566.3,1566.2,6.38488]
[1744392330616,6.8309,1566.6,1566.1,6.38518]
[1744392330617,12.45411,1566.4,1566.1,6.38518]
[1744392330833,7.28928441,1566.3,1566.0,13.63650301]
[1744392331045,13.67399441,1566.3,1566.0,6.3855]
[1744392331344,6.3849,1566.2,1565.9,13.24709976]
[1744392331506,6.53536944,1566.2,1565.9,6.86108976]
[1744392331707,0.15046944,1566.2,1565.9,6.86106976]
[1744392331909,6.53545944,1566.2,1565.9,6.38599]
[1744392332107,6.38529,1566.1,1565.8,13.5462]
[1744392332544,0.14863863,1566.0,1565.8,7.1598]
[1744392332727,0.14863863,1566.0,1565.9,6.3861]
[1744392332915,12.77006,1566.2,1565.9,6.3861]
[1744392333241,1.42637979,1566.1,1565.9,6.3861]
[1744392333429,0.14937379,1566.1,1565.9,6.3861]
[1744392333740,6.38499,1566.2,1565.9,12.77208]
[1744392334054,0.14937379,1566.1,1566.0,6.38542]
[1744392334421,9.11255944,1566.3,1566.0,6.38542]
[1744392334622,0.14937379,1566.1,1566.0,6.38542]
[1744392334848,6.07,1566.4,1566.0,1.27714]
[1744392335007,6.07,1566.4,1566.2,6.3847]
[1744392335426,6.07,1566.4,1566.3,6.38447]
[1744392335627,12.45327,1566.6,1566.3,12.76894]
[1744392336336,12.45327,1566.6,1566.2,12.76948]
[1744392336537,6.38375,1566.5,1566.2,12.76948]
[1744392336724,6.38375,1566.5,1566.2,6.38474]
[1744392336924,14.444457,1566.6,1566.2,6.38475]
[1744392337125,14.444457,1566.6,1566.1,7.21093]
[1744392337126,6.38417,1566.4,1566.1,7.21093]
[1744392337357,6.38417,1566.4,1566.1,12.7703]
[1744392337652,1.358395,1566.4,1566.2,6.38477]
[1744392337852,7.19978,1566.5,1566.3,6.38434]
[1744392337853,0.816,1566.5,1566.3,6.38434]
[1744392338160,7.19977,1566.5,1566.2,6.38485]
[1744392338355,7.19977,1566.5,1566.2,6.38478]
[1744392338519,7.19977,1566.5,1566.2,6.38469]